[Event "*** SCC Grand Prix: Titled Tuesday Blitz"]
[Site "Chess.com"]
[Date "2020.06.02"]
[Round "10"]
[White "Yoshikrov"]
[Black "zala02"]
[Result "0-1"]
[WhiteElo "2044"]
[BlackElo "2222"]
[TimeControl "180+1"]
[EndTime "11:58:06 PDT"]
[Termination "zala02 won by checkmate"]

1. e4 {[%clk 0:03:00.9]} 1... c5 {[%clk 0:02:59.3]} 2. Nf3 {[%clk 0:03:00.7]}
2... Nc6 {[%clk 0:02:58.9]} 3. d4 {[%clk 0:03:01]} 3... cxd4 {[%clk 0:02:58.3]}
4. Nxd4 {[%clk 0:03:01.9]} 4... Nf6 {[%clk 0:02:58.3]} 5. Nc3 {[%clk 0:03:02.2]}
5... e5 {[%clk 0:02:58.4]} 6. Ndb5 {[%clk 0:03:02.5]} 6... d6 {[%clk 0:02:58.8]}
7. Bg5 {[%clk 0:02:59.1]} 7... a6 {[%clk 0:02:58.7]} 8. Na3 {[%clk 0:02:59.4]}
8... b5 {[%clk 0:02:58.2]} 9. Nd5 {[%clk 0:02:58.1]} 9... Be7 {[%clk 0:02:57.9]}
10. Bxf6 {[%clk 0:02:57.2]} 10... Bxf6 {[%clk 0:02:58.1]} 11. c4 {[%clk
0:02:57.9]} 11... b4 {[%clk 0:02:51.5]} 12. Nc2 {[%clk 0:02:58.1]} 12... Rb8
{[%clk 0:02:43.6]} 13. b3 {[%clk 0:02:52.7]} 13... Bg5 {[%clk 0:02:39.1]} 14. g3
{[%clk 0:02:52.7]} 14... O-O {[%clk 0:02:36.6]} 15. Bg2 {[%clk 0:02:51.4]} 15...
g6 {[%clk 0:02:36.1]} 16. O-O {[%clk 0:02:50.9]} 16... Bh6 {[%clk 0:02:34.4]}
17. Qe2 {[%clk 0:02:13.1]} 17... f5 {[%clk 0:02:28.3]} 18. Rad1 {[%clk
0:02:00.4]} 18... a5 {[%clk 0:02:18.7]} 19. Rd3 {[%clk 0:01:47.8]} 19... Be6
{[%clk 0:02:00.7]} 20. Rfd1 {[%clk 0:01:44.9]} 20... Rf7 {[%clk 0:01:46.8]} 21.
exf5 {[%clk 0:01:20.7]} 21... gxf5 {[%clk 0:01:43.9]} 22. c5 {[%clk 0:01:08.3]}
22... e4 {[%clk 0:01:36.2]} 23. Bxe4 {[%clk 0:01:06.9]} 23... fxe4 {[%clk
0:01:37.1]} 24. Qxe4 {[%clk 0:01:07.3]} 24... Bf5 {[%clk 0:01:36.5]} 25. Qe2
{[%clk 0:00:17.8]} 25... Bxd3 {[%clk 0:01:34.9]} 26. Qxd3 {[%clk 0:00:18.1]}
26... Ne5 {[%clk 0:01:31.2]} 27. Qe4 {[%clk 0:00:16.2]} 27... Nf3+ {[%clk
0:01:25.4]} 28. Kg2 {[%clk 0:00:16.2]} 28... Ng5 {[%clk 0:01:19.7]} 29. Qc4
{[%clk 0:00:15.6]} 29... Rc8 {[%clk 0:01:10.8]} 30. Re1 {[%clk 0:00:13.4]} 30...
Rxc5 {[%clk 0:01:08.3]} 31. Qd3 {[%clk 0:00:13.9]} 31... Qd7 {[%clk 0:00:58.8]}
32. Nce3 {[%clk 0:00:14.2]} 32... Qh3+ {[%clk 0:00:58.2]} 33. Kh1 {[%clk
0:00:12.1]} 33... Rxf2 {[%clk 0:00:48.2]} 34. Ne7+ {[%clk 0:00:09.7]} 34... Kf8
{[%clk 0:00:43.5]} 35. Ng6+ {[%clk 0:00:08.8]} 35... hxg6 {[%clk 0:00:42.1]} 36.
Qxd6+ {[%clk 0:00:09.1]} 36... Kg8 {[%clk 0:00:36.9]} 37. Qxg6+ {[%clk 0:00:09]}
37... Bg7 {[%clk 0:00:34.5]} 38. Qe8+ {[%clk 0:00:07.9]} 38... Kh7 {[%clk
0:00:33.3]} 39. Nf1 {[%clk 0:00:04]} 39... Qg2# {[%clk 0:00:32.4]} 0-1

[Event "*** SCC Grand Prix: Titled Tuesday Blitz"]
[Site "Chess.com"]
[Date "2020.06.02"]
[Round "10"]
[White "superchess02"]
[Black "Sanan_Sjugirov"]
[Result "0-1"]
[WhiteElo "2709"]
[BlackElo "2897"]
[TimeControl "180+1"]
[EndTime "11:58:08 PDT"]
[Termination "Sanan_Sjugirov won by resignation"]

1. e4 {[%clk 0:02:57.8]} 1... c5 {[%clk 0:02:59.6]} 2. Nf3 {[%clk 0:02:57.6]}
2... d6 {[%clk 0:02:59.8]} 3. d4 {[%clk 0:02:58.2]} 3... cxd4 {[%clk 0:03:00.7]}
4. Nxd4 {[%clk 0:02:59.1]} 4... Nf6 {[%clk 0:03:01.4]} 5. Nc3 {[%clk 0:02:59.8]}
5... g6 {[%clk 0:03:01.8]} 6. Be3 {[%clk 0:02:59.3]} 6... Nc6 {[%clk 0:03:01]}
7. f3 {[%clk 0:02:59.3]} 7... h5 {[%clk 0:03:00.1]} 8. Qd2 {[%clk 0:02:59.5]}
8... Nxd4 {[%clk 0:03:00.3]} 9. Bxd4 {[%clk 0:02:58.8]} 9... Bh6 {[%clk
0:03:00.5]} 10. Be3 {[%clk 0:02:58.8]} 10... Bxe3 {[%clk 0:02:59.6]} 11. Qxe3
{[%clk 0:02:59.7]} 11... a6 {[%clk 0:02:47.9]} 12. O-O-O {[%clk 0:02:59.2]}
12... Qa5 {[%clk 0:02:44.8]} 13. Kb1 {[%clk 0:02:54.6]} 13... Be6 {[%clk
0:02:44.3]} 14. Qd4 {[%clk 0:02:43.4]} 14... Rc8 {[%clk 0:02:38.8]} 15. a3
{[%clk 0:02:40.1]} 15... O-O {[%clk 0:02:37.9]} 16. h4 {[%clk 0:02:36.1]} 16...
Qc5 {[%clk 0:02:32.5]} 17. Qxc5 {[%clk 0:02:12.7]} 17... Rxc5 {[%clk 0:02:33.4]}
18. Rd4 {[%clk 0:02:07.6]} 18... Rfc8 {[%clk 0:02:32.9]} 19. Be2 {[%clk
0:02:08]} 19... Nd7 {[%clk 0:02:28.4]} 20. Rhd1 {[%clk 0:02:08]} 20... Ne5
{[%clk 0:02:24.9]} 21. R1d2 {[%clk 0:02:07.5]} 21... Nc6 {[%clk 0:02:19.2]} 22.
R4d3 {[%clk 0:02:07.5]} 22... Ne5 {[%clk 0:02:18.1]} 23. Rd4 {[%clk 0:02:04.6]}
23... Kg7 {[%clk 0:02:12.2]} 24. Nd5 {[%clk 0:02:02.6]} 24... Bxd5 {[%clk
0:02:11.6]} 25. exd5 {[%clk 0:02:03.5]} 25... b5 {[%clk 0:02:05]} 26. f4 {[%clk
0:02:03.2]} 26... Nd7 {[%clk 0:01:55.9]} 27. Bf3 {[%clk 0:01:56.7]} 27... Nb6
{[%clk 0:01:48.5]} 28. Re2 {[%clk 0:01:55.1]} 28... R8c7 {[%clk 0:01:46]} 29. g3
{[%clk 0:01:45.2]} 29... Kf6 {[%clk 0:01:45.7]} 30. c3 {[%clk 0:01:43.1]} 30...
Rc4 {[%clk 0:01:40.9]} 31. Rd1 {[%clk 0:01:35.9]} 31... a5 {[%clk 0:01:39.9]}
32. Re3 {[%clk 0:01:30.4]} 32... R4c5 {[%clk 0:01:31.9]} 33. Rd4 {[%clk
0:01:27.2]} 33... Rc4 {[%clk 0:01:28]} 34. Rxc4 {[%clk 0:01:20.7]} 34... Rxc4
{[%clk 0:01:20.8]} 35. b4 {[%clk 0:01:20.7]} 35... axb4 {[%clk 0:01:14.4]} 36.
axb4 {[%clk 0:01:21.6]} 36... Rc7 {[%clk 0:01:12.4]} 37. Kc2 {[%clk 0:01:15.5]}
37... Ra7 {[%clk 0:01:11.2]} 38. Re2 {[%clk 0:01:11]} 38... Ra3 {[%clk
0:01:06.7]} 39. Kd3 {[%clk 0:01:09.8]} 39... Ra1 {[%clk 0:01:04]} 40. Ke3 {[%clk
0:01:05.3]} 40... Nc4+ {[%clk 0:00:53.2]} 41. Kf2 {[%clk 0:01:02]} 41... Rc1
{[%clk 0:00:52.4]} 42. Ra2 {[%clk 0:01:02.2]} 42... Rxc3 {[%clk 0:00:52.3]} 43.
Be2 {[%clk 0:01:02.8]} 43... Rb3 {[%clk 0:00:50.1]} 44. Ra7 {[%clk 0:00:47.4]}
44... Rxb4 {[%clk 0:00:47.6]} 45. Rb7 {[%clk 0:00:48.3]} 45... Rb2 {[%clk
0:00:44.7]} 46. Kf3 {[%clk 0:00:46.5]} 46... Na3 {[%clk 0:00:41.6]} 47. f5
{[%clk 0:00:44]} 47... gxf5 {[%clk 0:00:40.2]} 48. Bd1 {[%clk 0:00:43.6]} 48...
b4 {[%clk 0:00:38]} 49. Ke3 {[%clk 0:00:42.7]} 49... Nc4+ {[%clk 0:00:36.9]} 0-1

[Event "*** SCC Grand Prix: Titled Tuesday Blitz"]
[Site "Chess.com"]
[Date "2020.06.02"]
[Round "10"]
[White "ural58"]
[Black "DishonorOnYourCow"]
[Result "1-0"]
[WhiteElo "2443"]
[BlackElo "2295"]
[TimeControl "180+1"]
[EndTime "11:58:10 PDT"]
[Termination "ural58 won by resignation"]

1. e4 {[%clk 0:02:25.2]} 1... e5 {[%clk 0:02:57.4]} 2. f4 {[%clk 0:02:23.9]}
2... Nc6 {[%clk 0:02:52.4]} 3. Nf3 {[%clk 0:02:23.2]} 3... Bc5 {[%clk
0:02:52.2]} 4. Nxe5 {[%clk 0:02:22.3]} 4... Nxe5 {[%clk 0:02:50.8]} 5. d4 {[%clk
0:02:22.3]} 5... Bb6 {[%clk 0:01:57]} 6. dxe5 {[%clk 0:02:06.3]} 6... d6 {[%clk
0:01:49.3]} 7. Nc3 {[%clk 0:02:03.7]} 7... dxe5 {[%clk 0:01:42.3]} 8. Qxd8+
{[%clk 0:02:02.6]} 8... Kxd8 {[%clk 0:01:43.2]} 9. fxe5 {[%clk 0:02:00.4]} 9...
Ne7 {[%clk 0:01:38.3]} 10. Bg5 {[%clk 0:01:58.4]} 10... h6 {[%clk 0:01:36.9]}
11. O-O-O+ {[%clk 0:01:59.1]} 11... Ke8 {[%clk 0:01:36]} 12. Bxe7 {[%clk
0:01:56.3]} 12... Kxe7 {[%clk 0:01:36]} 13. Nd5+ {[%clk 0:01:56.4]} 13... Ke6
{[%clk 0:01:31.9]} 14. Bc4 {[%clk 0:01:55.1]} 14... Kxe5 {[%clk 0:01:28.3]} 15.
Nxb6 {[%clk 0:01:55]} 15... axb6 {[%clk 0:01:26.2]} 16. Bxf7 {[%clk 0:01:55.9]}
16... Be6 {[%clk 0:01:18.9]} 17. Bxe6 {[%clk 0:01:53.6]} 17... Kxe6 {[%clk
0:01:19.8]} 18. a3 {[%clk 0:01:52.1]} 18... Rhf8 {[%clk 0:01:17.7]} 19. Rhf1
{[%clk 0:01:49.1]} 19... Rae8 {[%clk 0:01:12.3]} 20. Kd2 {[%clk 0:01:47]} 20...
Ke5 {[%clk 0:01:10]} 21. Ke3 {[%clk 0:01:46.9]} 21... Rxf1 {[%clk 0:00:58.3]}
22. Rxf1 {[%clk 0:01:46.7]} 22... Re7 {[%clk 0:00:58.7]} 23. Rf5+ {[%clk
0:01:45.2]} 23... Ke6 {[%clk 0:00:57.4]} 24. h4 {[%clk 0:01:45.3]} 24... Rd7
{[%clk 0:00:29.3]} 25. Rf1 {[%clk 0:01:35.1]} 25... b5 {[%clk 0:00:24.4]} 26. h5
{[%clk 0:01:34.3]} 26... c6 {[%clk 0:00:23.5]} 27. g4 {[%clk 0:01:33.4]} 27...
Ke5 {[%clk 0:00:22.3]} 28. Rf5+ {[%clk 0:01:28.2]} 28... Ke6 {[%clk 0:00:22.5]}
29. Rf1 {[%clk 0:01:09.7]} 29... Ke5 {[%clk 0:00:21.7]} 30. c3 {[%clk 0:01:10]}
30... c5 {[%clk 0:00:19.5]} 31. Rf5+ {[%clk 0:01:08.5]} 31... Ke6 {[%clk
0:00:15.2]} 32. Rxc5 {[%clk 0:01:08.2]} 32... Rd1 {[%clk 0:00:14.7]} 33. Rxb5
{[%clk 0:01:08.3]} 33... Rg1 {[%clk 0:00:10.6]} 34. Rb6+ {[%clk 0:01:01.4]}
34... Ke5 {[%clk 0:00:09.5]} 35. Rg6 {[%clk 0:01:01.3]} 35... Re1+ {[%clk
0:00:08.2]} 36. Kd2 {[%clk 0:01:00.9]} 36... Rxe4 {[%clk 0:00:08]} 37. Rxg7
{[%clk 0:01:01.8]} 37... Rf4 {[%clk 0:00:06.5]} 38. Kd3 {[%clk 0:01:00.6]} 38...
Rf3+ {[%clk 0:00:06.3]} 39. Kc4 {[%clk 0:01:00.4]} 39... Rf2 {[%clk 0:00:05.2]}
40. b4 {[%clk 0:01:00]} 40... b6 {[%clk 0:00:04.6]} 41. Rg6 {[%clk 0:00:59.7]}
41... Rf4+ {[%clk 0:00:02.5]} 42. Kb3 {[%clk 0:00:59.2]} 42... Rf3 {[%clk
0:00:02.3]} 43. Rxb6 {[%clk 0:00:58.2]} 43... Rg3 {[%clk 0:00:01.6]} 44. Rxh6
{[%clk 0:00:58.6]} 44... Rxg4 {[%clk 0:00:01.6]} 45. a4 {[%clk 0:00:59.5]} 45...
Rf4 {[%clk 0:00:01.7]} 46. a5 {[%clk 0:00:59.1]} 46... Rf1 {[%clk 0:00:02.6]}
47. a6 {[%clk 0:00:58.8]} 47... Rb1+ {[%clk 0:00:03.1]} 48. Kc4 {[%clk
0:00:58.6]} 48... Ra1 {[%clk 0:00:03.4]} 49. Kb5 {[%clk 0:00:59.5]} 49... Ra3
{[%clk 0:00:03]} 50. c4 {[%clk 0:00:59.1]} 50... Kd4 {[%clk 0:00:03]} 51. Rd6+
{[%clk 0:00:58.9]} 1-0

[Event "*** SCC Grand Prix: Titled Tuesday Blitz"]
[Site "Chess.com"]
[Date "2020.06.02"]
[Round "10"]
[White "djano"]
[Black "MNyuyu"]
[Result "1-0"]
[WhiteElo "2413"]
[BlackElo "2266"]
[TimeControl "180+1"]
[EndTime "11:58:11 PDT"]
[Termination "djano won on time"]

1. d4 {[%clk 0:03:00.9]} 1... d5 {[%clk 0:02:55]} 2. Nf3 {[%clk 0:02:58.5]} 2...
Nf6 {[%clk 0:02:51.9]} 3. Bf4 {[%clk 0:02:58.4]} 3... Bf5 {[%clk 0:02:49.6]} 4.
e3 {[%clk 0:02:54.3]} 4... e6 {[%clk 0:02:49.3]} 5. c4 {[%clk 0:02:54.5]} 5...
c6 {[%clk 0:02:48.9]} 6. Qb3 {[%clk 0:02:51.8]} 6... Qb6 {[%clk 0:02:48.3]} 7.
c5 {[%clk 0:02:49.3]} 7... Qxb3 {[%clk 0:02:47.5]} 8. axb3 {[%clk 0:02:50.2]}
8... Nbd7 {[%clk 0:02:45.3]} 9. b4 {[%clk 0:02:50]} 9... a6 {[%clk 0:02:44.7]}
10. Nc3 {[%clk 0:02:48.7]} 10... Rc8 {[%clk 0:02:43.2]} 11. h3 {[%clk
0:02:47.5]} 11... Be7 {[%clk 0:02:43.1]} 12. Nd2 {[%clk 0:02:47.5]} 12... Bd8
{[%clk 0:02:42.5]} 13. Nb3 {[%clk 0:02:43.5]} 13... O-O {[%clk 0:02:39.5]} 14.
Na5 {[%clk 0:02:43.7]} 14... Bxa5 {[%clk 0:02:38.6]} 15. bxa5 {[%clk 0:02:44.6]}
15... Ne4 {[%clk 0:02:35.6]} 16. f3 {[%clk 0:02:43.4]} 16... Nef6 {[%clk
0:02:31.2]} 17. Kd2 {[%clk 0:02:33.2]} 17... Ne8 {[%clk 0:02:27.6]} 18. g4
{[%clk 0:02:30.8]} 18... Bg6 {[%clk 0:02:26.8]} 19. h4 {[%clk 0:02:31.2]} 19...
f6 {[%clk 0:02:25.2]} 20. h5 {[%clk 0:02:22.5]} 20... Bf7 {[%clk 0:02:24.2]} 21.
Bd3 {[%clk 0:02:22.2]} 21... e5 {[%clk 0:02:20]} 22. Bh2 {[%clk 0:02:18.1]}
22... Nc7 {[%clk 0:02:16.7]} 23. Rag1 {[%clk 0:02:10.7]} 23... h6 {[%clk
0:02:12.2]} 24. f4 {[%clk 0:02:05.7]} 24... exf4 {[%clk 0:02:10.7]} 25. exf4
{[%clk 0:02:01.6]} 25... Ne6 {[%clk 0:02:10.3]} 26. Ne2 {[%clk 0:02:01.5]} 26...
Rfe8 {[%clk 0:02:07.6]} 27. Bg3 {[%clk 0:01:59.2]} 27... Re7 {[%clk 0:02:01.3]}
28. Bh4 {[%clk 0:01:55.4]} 28... Rce8 {[%clk 0:01:59.1]} 29. Rh2 {[%clk
0:01:55.8]} 29... Kf8 {[%clk 0:01:33.7]} 30. Rhg2 {[%clk 0:01:53.8]} 30... Kg8
{[%clk 0:01:11.5]} 31. Bf5 {[%clk 0:01:50.3]} 31... Nef8 {[%clk 0:01:04.6]} 32.
Nc3 {[%clk 0:01:40.4]} 32... Ne6 {[%clk 0:00:58.4]} 33. Bxe6 {[%clk 0:01:35.6]}
33... Rxe6 {[%clk 0:00:55.5]} 34. g5 {[%clk 0:01:36]} 34... Bxh5 {[%clk
0:00:41.7]} 35. gxf6 {[%clk 0:01:30.3]} 35... Nxf6 {[%clk 0:00:39.7]} 36. Rxg7+
{[%clk 0:01:29.5]} 36... Kh8 {[%clk 0:00:39.2]} 37. Rxb7 {[%clk 0:01:24.5]}
37... Rg8 {[%clk 0:00:19]} 38. f5 {[%clk 0:01:13.2]} 38... Rxg1 {[%clk
0:00:14.5]} 39. fxe6 {[%clk 0:01:13.5]} 39... Ng8 {[%clk 0:00:11.8]} 40. e7
{[%clk 0:01:02.1]} 40... Rg4 {[%clk 0:00:10.9]} 41. Bf2 {[%clk 0:00:53.7]} 41...
Rf4 {[%clk 0:00:09.9]} 42. Bg3 {[%clk 0:00:50.8]} 42... Rg4 {[%clk 0:00:08.4]}
43. Be5+ {[%clk 0:00:50.3]} 1-0

[Event "*** SCC Grand Prix: Titled Tuesday Blitz"]
[Site "Chess.com"]
[Date "2020.06.02"]
[Round "10"]
[White "Efremov_Vlad"]
[Black "IriBu"]
[Result "0-1"]
[WhiteElo "2164"]
[BlackElo "2472"]
[TimeControl "180+1"]
[EndTime "11:58:11 PDT"]
[Termination "IriBu won by checkmate"]

1. c4 {[%clk 0:03:00.9]} 1... Nf6 {[%clk 0:02:56.9]} 2. d4 {[%clk 0:03:00.7]}
2... g6 {[%clk 0:02:56]} 3. Nf3 {[%clk 0:03:00.8]} 3... Bg7 {[%clk 0:02:55.6]}
4. g3 {[%clk 0:03:01.5]} 4... d6 {[%clk 0:02:55.7]} 5. Bg2 {[%clk 0:03:02]} 5...
O-O {[%clk 0:02:55.8]} 6. O-O {[%clk 0:03:02.2]} 6... Ne4 {[%clk 0:02:55.4]} 7.
Nc3 {[%clk 0:02:54.8]} 7... Nxc3 {[%clk 0:02:42.2]} 8. bxc3 {[%clk 0:02:55.7]}
8... c5 {[%clk 0:02:40.6]} 9. Qd3 {[%clk 0:02:47.9]} 9... Nc6 {[%clk 0:02:38]}
10. Be3 {[%clk 0:02:45.4]} 10... Qa5 {[%clk 0:02:27.2]} 11. Rfb1 {[%clk
0:02:41.3]} 11... Bf5 {[%clk 0:02:19.1]} 12. Qd2 {[%clk 0:02:35.6]} 12... Bxb1
{[%clk 0:02:17.7]} 13. Rxb1 {[%clk 0:02:35.9]} 13... Rab8 {[%clk 0:02:11.9]} 14.
Rb5 {[%clk 0:02:30.5]} 14... Qa4 {[%clk 0:02:08.3]} 15. Qd3 {[%clk 0:02:02.1]}
15... Qxa2 {[%clk 0:02:04.8]} 16. h4 {[%clk 0:02:01.1]} 16... h5 {[%clk
0:02:00.7]} 17. Nd2 {[%clk 0:01:59.3]} 17... cxd4 {[%clk 0:01:50.9]} 18. cxd4
{[%clk 0:01:57.7]} 18... Qa1+ {[%clk 0:01:49.2]} 19. Rb1 {[%clk 0:01:55]} 19...
Qa6 {[%clk 0:01:48.4]} 20. Bd5 {[%clk 0:01:47.7]} 20... e6 {[%clk 0:01:46.8]}
21. Be4 {[%clk 0:01:47]} 21... d5 {[%clk 0:01:44.4]} 22. Bxg6 {[%clk 0:01:27.6]}
22... fxg6 {[%clk 0:01:41.4]} 23. Qxg6 {[%clk 0:01:27.7]} 23... Ne7 {[%clk
0:01:34.2]} 24. Qxh5 {[%clk 0:01:26.9]} 24... Nf5 {[%clk 0:01:31.1]} 25. Bf4
{[%clk 0:01:17.7]} 25... Rbc8 {[%clk 0:01:22.2]} 26. Qg6 {[%clk 0:01:15.8]}
26... dxc4 {[%clk 0:01:05.2]} 27. Be5 {[%clk 0:01:15.4]} 27... Rf7 {[%clk
0:01:05.1]} 28. h5 {[%clk 0:01:12.7]} 28... c3 {[%clk 0:01:01.4]} 29. Ne4 {[%clk
0:01:12.7]} 29... c2 {[%clk 0:00:55.7]} 30. Rc1 {[%clk 0:01:12.3]} 30... Qa3
{[%clk 0:00:47.8]} 31. Qg5 {[%clk 0:01:00]} 31... Kh8 {[%clk 0:00:42.8]} 32. Nf6
{[%clk 0:00:52.9]} 32... Rcf8 {[%clk 0:00:35]} 33. Rxc2 {[%clk 0:00:21.9]} 33...
Bxf6 {[%clk 0:00:33.1]} 34. Bxf6+ {[%clk 0:00:19.9]} 34... Rxf6 {[%clk
0:00:33.5]} 35. Rc8 {[%clk 0:00:19.3]} 35... Qe7 {[%clk 0:00:30.7]} 36. Rxf8+
{[%clk 0:00:16.3]} 36... Qxf8 {[%clk 0:00:31]} 37. e4 {[%clk 0:00:14.1]} 37...
Nxd4 {[%clk 0:00:30.7]} 38. Qe5 {[%clk 0:00:14.4]} 38... Nc6 {[%clk 0:00:30.5]}
39. Qb2 {[%clk 0:00:13.8]} 39... e5 {[%clk 0:00:31]} 40. Qxb7 {[%clk 0:00:13]}
40... Rxf2 {[%clk 0:00:29.5]} 41. Qxc6 {[%clk 0:00:13.2]} 41... Rf1+ {[%clk
0:00:29.4]} 42. Kg2 {[%clk 0:00:13.6]} 42... Qf3+ {[%clk 0:00:29.1]} 43. Kh3
{[%clk 0:00:14]} 43... Rh1# {[%clk 0:00:29.5]} 0-1

[Event "*** SCC Grand Prix: Titled Tuesday Blitz"]
[Site "Chess.com"]
[Date "2020.06.02"]
[Round "10"]
[White "yamalchess"]
[Black "stanyga"]
[Result "0-1"]
[WhiteElo "2462"]
[BlackElo "2651"]
[TimeControl "180+1"]
[EndTime "11:58:12 PDT"]
[Termination "stanyga won on time"]

1. d4 {[%clk 0:03:00.9]} 1... d5 {[%clk 0:02:56.9]} 2. c4 {[%clk 0:03:00.9]}
2... c6 {[%clk 0:02:57.2]} 3. Nc3 {[%clk 0:03:00.6]} 3... Nf6 {[%clk 0:02:57.3]}
4. Bf4 {[%clk 0:03:01.2]} 4... dxc4 {[%clk 0:02:52.1]} 5. e3 {[%clk 0:03:01.2]}
5... b5 {[%clk 0:02:51.5]} 6. a4 {[%clk 0:03:00.5]} 6... b4 {[%clk 0:02:50.9]}
7. Nb1 {[%clk 0:02:53.7]} 7... c5 {[%clk 0:02:33.2]} 8. Bxc4 {[%clk 0:02:45.3]}
8... Bb7 {[%clk 0:02:32.5]} 9. Nf3 {[%clk 0:02:43]} 9... cxd4 {[%clk 0:02:32.3]}
10. Bxb8 {[%clk 0:02:28.9]} 10... Bxf3 {[%clk 0:01:39.9]} 11. Bb5+ {[%clk
0:02:16.7]} 11... Nd7 {[%clk 0:01:38.7]} 12. gxf3 {[%clk 0:02:14.7]} 12... Rxb8
{[%clk 0:01:35]} 13. Qxd4 {[%clk 0:02:14.3]} 13... Qc7 {[%clk 0:01:27.6]} 14.
Nd2 {[%clk 0:02:07.5]} 14... e5 {[%clk 0:01:23.7]} 15. Bxd7+ {[%clk 0:02:06]}
15... Ke7 {[%clk 0:01:18.1]} 16. Qe4 {[%clk 0:01:38.8]} 16... Kxd7 {[%clk
0:01:15.7]} 17. Rd1 {[%clk 0:01:36.1]} 17... Ke6 {[%clk 0:01:02.2]} 18. Nc4
{[%clk 0:01:28.8]} 18... f5 {[%clk 0:01:02]} 19. Qd5+ {[%clk 0:01:27.8]} 19...
Kf6 {[%clk 0:01:02.2]} 20. f4 {[%clk 0:01:25.1]} 20... exf4 {[%clk 0:00:56.1]}
21. Qd4+ {[%clk 0:01:23]} 21... Ke6 {[%clk 0:00:45.7]} 22. exf4 {[%clk
0:01:08.7]} 22... Bc5 {[%clk 0:00:45.1]} 23. Qd5+ {[%clk 0:01:05.1]} 23... Kf6
{[%clk 0:00:45.2]} 24. O-O {[%clk 0:01:01.5]} 24... Rbd8 {[%clk 0:00:34.3]} 25.
Qg2 {[%clk 0:00:46.7]} 25... Bxf2+ {[%clk 0:00:29.9]} 26. Kh1 {[%clk 0:00:32]}
26... Qxc4 {[%clk 0:00:26.9]} 27. Qg5+ {[%clk 0:00:19.8]} 27... Ke6 {[%clk
0:00:26.1]} 28. Kg2 {[%clk 0:00:10.3]} 28... Rxd1 {[%clk 0:00:23.2]} 29. Rxd1
{[%clk 0:00:08.6]} 29... Be3 {[%clk 0:00:21.6]} 30. Qxg7 {[%clk 0:00:05.9]}
30... Qe4+ {[%clk 0:00:21.2]} 0-1

[Event "*** SCC Grand Prix: Titled Tuesday Blitz"]
[Site "Chess.com"]
[Date "2020.06.02"]
[Round "10"]
[White "gui_borba"]
[Black "Ranindu2003"]
[Result "1-0"]
[WhiteElo "2338"]
[BlackElo "2467"]
[TimeControl "180+1"]
[EndTime "11:58:12 PDT"]
[Termination "gui_borba won by checkmate"]

1. d4 {[%clk 0:03:00.9]} 1... d5 {[%clk 0:02:59.6]} 2. Bf4 {[%clk 0:03:00.4]}
2... Nf6 {[%clk 0:02:59]} 3. e3 {[%clk 0:03:00.7]} 3... e6 {[%clk 0:02:58]} 4.
Nf3 {[%clk 0:03:00.1]} 4... c5 {[%clk 0:02:57.8]} 5. c3 {[%clk 0:03:00.4]} 5...
Nc6 {[%clk 0:02:57.2]} 6. Nbd2 {[%clk 0:02:59.4]} 6... cxd4 {[%clk 0:02:56.2]}
7. exd4 {[%clk 0:03:00.3]} 7... Nh5 {[%clk 0:02:56]} 8. Be3 {[%clk 0:02:57.7]}
8... Bd6 {[%clk 0:02:55.4]} 9. Be2 {[%clk 0:02:55.3]} 9... Nf4 {[%clk
0:02:53.7]} 10. Bxf4 {[%clk 0:02:53.3]} 10... Bxf4 {[%clk 0:02:54.6]} 11. O-O
{[%clk 0:02:54]} 11... O-O {[%clk 0:02:52.5]} 12. Bd3 {[%clk 0:02:51.5]} 12...
g6 {[%clk 0:02:40.2]} 13. Re1 {[%clk 0:02:49.6]} 13... Bd7 {[%clk 0:02:37]} 14.
Ne5 {[%clk 0:02:47.8]} 14... Nxe5 {[%clk 0:02:25.9]} 15. dxe5 {[%clk 0:02:48.7]}
15... f6 {[%clk 0:02:26.5]} 16. Nf3 {[%clk 0:02:45.3]} 16... Qc7 {[%clk
0:02:14]} 17. Qe2 {[%clk 0:02:40.4]} 17... Rae8 {[%clk 0:02:06.6]} 18. g3 {[%clk
0:02:39.4]} 18... Bxe5 {[%clk 0:02:02.4]} 19. Nxe5 {[%clk 0:02:40.3]} 19... fxe5
{[%clk 0:02:02.5]} 20. Qxe5 {[%clk 0:02:41.2]} 20... Qb6 {[%clk 0:02:02.5]} 21.
Re2 {[%clk 0:02:31.5]} 21... Rf7 {[%clk 0:02:00.2]} 22. Qd4 {[%clk 0:02:28.7]}
22... Qc7 {[%clk 0:01:51.1]} 23. Rae1 {[%clk 0:02:26.8]} 23... a6 {[%clk
0:01:45.8]} 24. Re5 {[%clk 0:02:21]} 24... Ref8 {[%clk 0:01:43.7]} 25. R1e2
{[%clk 0:02:17.3]} 25... b5 {[%clk 0:01:40.4]} 26. h4 {[%clk 0:02:16.8]} 26...
Qd8 {[%clk 0:01:07.3]} 27. h5 {[%clk 0:02:07.5]} 27... g5 {[%clk 0:01:06]} 28.
h6 {[%clk 0:02:07.9]} 28... Qf6 {[%clk 0:00:57.5]} 29. Qg4 {[%clk 0:01:55.7]}
29... Qxh6 {[%clk 0:00:56.9]} 30. Rxg5+ {[%clk 0:01:55.9]} 30... Kh8 {[%clk
0:00:55.1]} 31. Rh5 {[%clk 0:01:56.1]} 31... Qc1+ {[%clk 0:00:37.8]} 32. Kg2
{[%clk 0:01:14.9]} 32... e5 {[%clk 0:00:36.2]} 33. Qh4 {[%clk 0:01:14.7]} 33...
e4 {[%clk 0:00:33.1]} 34. Bc2 {[%clk 0:01:14.2]} 34... Rxf2+ {[%clk 0:00:10.4]}
35. Rxf2 {[%clk 0:01:13.6]} 35... Rxf2+ {[%clk 0:00:11.3]} 36. Kxf2 {[%clk
0:01:07.2]} 36... Qxc2+ {[%clk 0:00:11.8]} 37. Ke3 {[%clk 0:01:07.4]} 37... Qd3+
{[%clk 0:00:08]} 38. Kf4 {[%clk 0:01:07.7]} 38... Qf3+ {[%clk 0:00:08.1]} 39.
Ke5 {[%clk 0:01:07.8]} 39... Qf7 {[%clk 0:00:07.8]} 40. Qf6+ {[%clk 0:01:05.2]}
40... Qxf6+ {[%clk 0:00:07.3]} 41. Kxf6 {[%clk 0:01:06.1]} 41... Bc6 {[%clk
0:00:06.6]} 42. Re5 {[%clk 0:01:02.1]} 42... Kg8 {[%clk 0:00:06.7]} 43. Re6
{[%clk 0:01:00.8]} 43... Bb7 {[%clk 0:00:06.7]} 44. Re8# {[%clk 0:01:00.8]} 1-0